[Event "FAI-ch Open 2021"]
[Site "Klaksvik"]
[Date "2021.04.01"]
[Round "6.8"]
[White "Bertholdsen, Bjarki"]
[Black "Joensen, Jakup F."]
[Result "1-0"]
[ECO "C44"]
[WhiteElo "1353"]
[BlackElo "1690"]
[Annotator "NA RC"]
[PlyCount "111"]
[EventDate "2021.03.27"]
[EventType "swiss"]
[EventCountry "FAI"]
[SourceTitle "playchess.com"]
[Source "ChessBase"]
[SourceQuality "1"]
[TimeControl "40/5400+30:900+30"]

1. e4 {[%emt 0:00:00]} Nc6 {[%emt 0:00:00]} 2. d4 {[%emt 0:00:17]} e5 {[%emt 0:00:00]} 3. Nf3 {[%emt 0:01:41]} exd4 {[%emt 0:02:18]} 4. Nxd4 {[%emt 0:01:41]} Ne5 {[%emt 0:04:28]} 5. Be2 {[%emt 0:09:35]} d6 {[%emt 0:03:38]} 6. Nc3 {[%emt 0:04:03]} Nf6 {[%emt 0:00:53]} 7. Bg5 {[%emt 0:03:30]} Be7 {[%emt 0:01:13]} 8. Qd2 {[%emt 0:10:46]} O-O {[%emt 0:05:49]} 9. Nf5 {[%emt 0:09:10]} Bxf5 {[%emt 0:05:51]} 10. exf5 {[%emt 0:00:08]} Qd7 {[%emt 0:02:40]} 11. f4 {[%emt 0:07:32]} Nc6 {[%emt 0:06:17]} 12. g4 {[%emt 0:03:39]} a6 {[%emt 0:15:12]} 13. h4 {[%emt 0:11:41]} b5 {[%emt 0:04:51]} 14. O-O-O {[%emt 0:10:21]} Rab8 {[%emt 0:13:10]} 15. Bf3 {[%emt 0:04:14]} b4 {[%emt 0:14:03]} 16. Nd5 {[%emt 0:09:08]} a5 {[%emt 0:06:13]} 17. Nxf6+ {[%emt 0:02:44]} Bxf6 {[%emt 0:01:41]} 18. Bxf6 {[%emt 0:00:21]} gxf6 {[%emt 0:00:12]} 19. Bxc6 {[%emt 0:00:27]} Qxc6 {[%emt 0:00:51]} 20. Qd4 {[%emt 0:00:21]} Qc5 {[%emt 0:02:10]} 21. Qxc5 {[%emt 0:01:56]} dxc5 {[%emt 0:00:02]} 22. Rd7 {[%emt 0:00:11]} Rbc8 {[%emt 0:01:00]} 23. g5 {[%emt 0:01:10]} fxg5 {[%emt 0:00:46]} 24. fxg5 {[%emt 0:00:16]} Rfe8 {[%emt 0:01:07]} 25. h5 {[%emt 0:00:59]} Re5 {[%emt 0:01:33]} 26. Rf1 {[%emt 0:00:37]} Rce8 {[%emt 0:01:44]} 27. Rxc7 {[%emt 0:00:26]} Kf8 {[%emt 0:01:24]} 28. g6 {[%emt 0:01:04]} hxg6 {[%emt 0:00:23]} 29. fxg6 {[%emt 0:00:12]} Rxh5 {[%emt 0:00:36]} 30. Rcxf7+ {[%emt 0:00:32]} Kg8 {[%emt 0:00:04]} 31. g7 {[%emt 0:00:11]} Rhe5 {[%emt 0:00:53]} 32. R7f5 {[%emt 0:02:07]} Kxg7 {[%emt 0:00:54]} 33. Rg1+ {[%emt 0:02:08]} Kh6 {[%emt 0:00:57]} 34. Rxe5 {[%emt 0:00:37]} Rxe5 {[%emt 0:00:02]} 35. a3 {[%emt 0:01:39]} Re3 {[%emt 0:01:18]} 36. axb4 {[%emt 0:00:52]} axb4 {[%emt 0:00:35]} 37. Kd2 {[%emt 0:00:49]} Re5 {[%emt 0:00:12]} 38. Kd3 {[%emt 0:00:31]} Rf5 {[%emt 0:00:56]} 39. Kc4 {[%emt 0:00:28]} Re5 {[%emt 0:00:14]} 40. c3 {[%emt 0:00:00]} bxc3 {[%emt 0:00:00]} 41. Kxc3 {[%emt 0:01:15]} Rf5 {[%emt 0:04:46]} 42. Rg2 {[%emt 0:02:21]} Rh5 {[%emt 0:03:05]} 43. Kc4 {[%emt 0:00:44]} Rf5 {[%emt 0:00:28]} 44. Kb5 {[%emt 0:00:16]} Re5 {[%emt 0:00:39]} 45. Rc2 {[%emt 0:00:15]} Kg6 {[%emt 0:03:32]} 46. Rxc5 {[%emt 0:00:13]} Re2 {[%emt 0:01:30]} 47. b4 {[%emt 0:00:13]} Kf6 {[%emt 0:00:20]} 48. Ka6 {[%emt 0:00:23]} Ke6 {[%emt 0:00:19]} 49. b5 {[%emt 0:00:21]} Kd6 {[%emt 0:01:48]} 50. Rc1 {[%emt 0:00:43]} Ra2+ {[%emt 0:01:17]} 51. Kb7 {[%emt 0:00:09]} Rb2 {[%emt 0:01:19]} 52. b6 {[%emt 0:00:12]} Rb3 {[%emt 0:00:27]} 53. Ka7 {[%emt 0:00:09]} Rb2 {[%emt 0:01:37]} 54. b7 {[%emt 0:00:11]} Ra2+ {[%emt 0:00:07]} 55. Kb8 {[%emt 0:00:07]} Rb2 {[%emt 0:00:21]} 56. Kc8 {[%emt 0:00:29]} 1-0

[Event "FAI-ch Open 2021"]
[Site "Klaksvik"]
[Date "2021.04.02"]
[Round "7.1"]
[White "Skaale, Janus"]
[Black "Funningstovu, Brandur I"]
[Result "1-0"]
[ECO "C09"]
[WhiteElo "1809"]
[BlackElo "1311"]
[Annotator "NA"]
[PlyCount "75"]
[EventDate "2021.03.27"]
[EventType "swiss"]
[EventCountry "FAI"]
[SourceTitle "playchess.com"]
[Source "ChessBase"]
[SourceQuality "1"]
[TimeControl "40/5400+30:900+30"]

1. e4 {[%emt 0:00:00]} e6 {[%emt 0:00:00]} 2. d4 {[%emt 0:00:00]} d5 {[%emt 0:00:00]} 3. Nd2 {[%emt 0:00:38]} c5 {[%emt 0:00:15]} 4. Ngf3 {[%emt 0:01:05]} Nc6 {[%emt 0:02:10]} 5. exd5 {[%emt 0:01:02]} exd5 {[%emt 0:00:33]} 6. Bb5 {[%emt 0:01:09]} Bd6 {[%emt 0:00:38]} 7. dxc5 {[%emt 0:00:50]} Bxc5 {[%emt 0:02:13]} 8. O-O {[%emt 0:00:23]} h6 {[%emt 0:01:19]} 9. Nb3 {[%emt 0:14:40]} Bd6 {[%emt 0:01:13]} 10. Nbd4 {[%emt 0:10:22]} Nge7 {[%emt 0:03:19]} 11. b3 {[%emt 0:01:41]} O-O {[%emt 0:00:18]} 12. Bb2 {[%emt 0:00:55]} a6 {[%emt 0:00:42]} 13. Be2 {[%emt 0:06:02]} b5 {[%emt 0:07:25]} 14. a4 {[%emt 0:02:39]} b4 {[%emt 0:02:54]} 15. Qd2 {[%emt 0:03:13]} Bb7 {[%emt 0:05:31]} 16. Rfd1 {[%emt 0:05:49]} Qc7 {[%emt 0:02:08]} 17. g3 {[%emt 0:02:48]} f5 {[%emt 0:06:33]} 18. Ne6 {[%emt 0:01:25]} Qd7 {[%emt 0:02:35]} 19. Nxf8 {[%emt 0:01:20]} Rxf8 {[%emt 0:00:09]} 20. c4 {[%emt 0:03:34]} bxc3 {[%emt 0:01:28]} 21. Qxc3 {[%emt 0:00:21]} Rf7 {[%emt 0:01:27]} 22. Nd4 {[%emt 0:04:49]} Bb4 {[%emt 0:01:41]} 23. Qc2 {[%emt 0:02:58]} f4 {[%emt 0:05:43]} 24. Nxc6 {[%emt 0:04:24]} Bxc6 {[%emt 0:00:20]} 25. Rd4 {[%emt 0:02:19]} fxg3 {[%emt 0:08:34]} 26. hxg3 {[%emt 0:01:34]} Bd6 {[%emt 0:06:08]} 27. Rc1 {[%emt 0:06:01]} Be5 {[%emt 0:01:04]} 28. Bg4 {[%emt 0:03:39]} Qa7 {[%emt 0:03:56]} 29. Rd3 {[%emt 0:04:01]} d4 {[%emt 0:04:09]} 30. Be6 {[%emt 0:01:12]} Be4 {[%emt 0:04:00]} 31. Bxf7+ {[%emt 0:01:01]} Kxf7 {[%emt 0:00:30]} 32. Qc4+ {[%emt 0:01:30]} Bd5 {[%emt 0:00:32]} 33. Qc2 {[%emt 0:01:10]} Be4 {[%emt 0:00:42]} 34. Qc5 {[%emt 0:06:58]} Qb8 {[%emt 0:03:36]} 35. Bxd4 {[%emt 0:01:36]} Bd6 {[%emt 0:05:16]} 36. Qc4+ {[%emt 0:00:31]} Nd5 {[%emt 0:02:53]} 37. Re3 {[%emt 0:00:39]} Kg6 {[%emt 0:05:25]} 38. Rxe4 {[%emt 0:00:16]} 1-0

[Event "FAI-ch Open 2021"]
[Site "Klaksvik"]
[Date "2021.04.02"]
[Round "7.2"]
[White "Joensen, Henrik W."]
[Black "Gregersen, Hedin"]
[Result "1-0"]
[ECO "B09"]
[WhiteElo "1535"]
[BlackElo "1842"]
[Annotator "NA"]
[PlyCount "51"]
[EventDate "2021.03.27"]
[EventType "swiss"]
[EventCountry "FAI"]
[SourceTitle "playchess.com"]
[Source "ChessBase"]
[SourceQuality "1"]
[TimeControl "40/5400+30:900+30"]

1. e4 {[%emt 0:00:00]} d6 {[%emt 0:00:00]} 2. d4 {[%emt 0:00:00]} Nf6 {[%emt 0:00:00]} 3. Nc3 {[%emt 0:01:47]} g6 {[%emt 0:00:00]} 4. f4 {[%emt 0:01:05]} Bg7 {[%emt 0:00:03]} 5. Nf3 {[%emt 0:01:34]} O-O {[%emt 0:00:09]} 6. e5 {[%emt 0:00:36]} Nfd7 {[%emt 0:06:03]} 7. Bc4 {[%emt 0:06:19]} Nb6 {[%emt 0:02:53]} 8. Bb3 {[%emt 0:05:54]} d5 {[%emt 0:10:02]} 9. Be3 {[%emt 0:03:35]} Nc6 {[%emt 0:02:01]} 10. O-O {[%emt 0:01:24]} Na5 {[%emt 0:08:00]} 11. Qe2 {[%emt 0:06:03]} Nbc4 {[%emt 0:04:52]} 12. Bxc4 {[%emt 0:01:21]} Nxc4 {[%emt 0:00:24]} 13. b3 {[%emt 0:00:55]} Nxe3 {[%emt 0:00:25]} 14. Qxe3 {[%emt 0:00:12]} Bf5 {[%emt 0:08:06]} 15. Rac1 {[%emt 0:01:41]} b6 {[%emt 0:03:22]} 16. Nh4 {[%emt 0:03:20]} Bc8 {[%emt 0:07:27]} 17. f5 {[%emt 0:05:52]} c5 {[%emt 0:13:33]} 18. fxg6 {[%emt 0:02:58]} hxg6 {[%emt 0:01:36]} 19. Ne2 {[%emt 0:04:39]} cxd4 {[%emt 0:04:52]} 20. Nxd4 {[%emt 0:00:46]} e6 {[%emt 0:08:16]} 21. Nhf3 {[%emt 0:10:24]} f6 {[%emt 0:01:16]} 22. Kh1 {[%emt 0:06:14]} f5 {[%emt 0:03:57]} 23. Qf4 {[%emt 0:06:38]} Kf7 {[%emt 0:01:18]} 24. Ng5+ {[%emt 0:01:53]} Ke8 {[%emt 0:00:12]} 25. Ngxe6 {[%emt 0:00:57]} Bxe6 {[%emt 0:01:21]} 26. Nxe6 {[%emt 0:00:48]} 1-0

[Event "FAI-ch Open 2021"]
[Site "Klaksvik"]
[Date "2021.04.02"]
[Round "7.3"]
[White "Gregersen, Einar"]
[Black "Christiansen, Esbern"]
[Result "1-0"]
[ECO "C01"]
[WhiteElo "1766"]
[BlackElo "1775"]
[Annotator "NA"]
[PlyCount "67"]
[EventDate "2021.03.27"]
[EventType "swiss"]
[EventCountry "FAI"]
[SourceTitle "playchess.com"]
[Source "ChessBase"]
[SourceQuality "1"]
[TimeControl "40/5400+30:900+30"]

1. e4 {[%emt 0:00:00]} e6 {[%emt 0:00:00]} 2. d4 {[%emt 0:00:00]} d5 {[%emt 0:00:00]} 3. exd5 {[%emt 0:00:00]} exd5 {[%emt 0:00:00]} 4. Nf3 {[%emt 0:00:00]} Nc6 {[%emt 0:01:49]} 5. Be2 {[%emt 0:02:42]} Bd6 {[%emt 0:00:32]} 6. O-O {[%emt 0:00:35]} Nge7 {[%emt 0:00:19]} 7. c4 {[%emt 0:02:34]} dxc4 {[%emt 0:00:27]} 8. Bxc4 {[%emt 0:00:07]} O-O {[%emt 0:01:45]} 9. Nc3 {[%emt 0:02:49]} Bg4 {[%emt 0:06:18]} 10. h3 {[%emt 0:08:58]} Bh5 {[%emt 0:14:50]} 11. g4 {[%emt 0:11:22]} Bg6 {[%emt 0:00:09]} 12. Re1 {[%emt 0:01:03]} Na5 {[%emt 0:08:14]} 13. Bb3 {[%emt 0:03:11]} Nxb3 {[%emt 0:06:20]} 14. Qxb3 {[%emt 0:00:14]} h5 {[%emt 0:02:42]} 15. Bg5 {[%emt 0:08:54]} Qd7 {[%emt 0:04:49]} 16. Bxe7 {[%emt 0:09:12]} hxg4 {[%emt 0:05:58]} 17. Nh4 {[%emt 0:11:18]} gxh3 {[%emt 0:05:40]} 18. Bxd6 {[%emt 0:03:46]} cxd6 {[%emt 0:08:04]} 19. Kh2 {[%emt 0:08:41]} Qg4 {[%emt 0:04:57]} 20. Rg1 {[%emt 0:00:09]} Qxh4 {[%emt 0:01:08]} 21. Rxg6 {[%emt 0:00:41]} Qxf2+ {[%emt 0:07:54]} 22. Kxh3 {[%emt 0:00:15]} Qf5+ {[%emt 0:03:25]} 23. Rg4 {[%emt 0:00:28]} Rae8 {[%emt 0:03:03]} 24. Nd5 {[%emt 0:03:03]} Re4 {[%emt 0:04:33]} 25. Nf6+ {[%emt 0:01:29]} Qxf6 {[%emt 0:00:15]} 26. Rxe4 {[%emt 0:00:07]} Qf5+ {[%emt 0:00:24]} 27. Rg4 {[%emt 0:00:14]} Re8 {[%emt 0:00:35]} 28. Kg3 {[%emt 0:02:25]} Re2 {[%emt 0:02:49]} 29. Qf3 {[%emt 0:03:51]} Qc2 {[%emt 0:00:21]} 30. Rf1 {[%emt 0:01:25]} f6 {[%emt 0:01:22]} 31. Qd5+ {[%emt 0:02:20]} Kf8 {[%emt 0:00:22]} 32. Rxf6+ {[%emt 0:00:16]} gxf6 {[%emt 0:00:09]} 33. Qg8+ {[%emt 0:00:07]} Ke7 {[%emt 0:00:14]} 34. Rg7# {[%emt 0:00:08]} 1-0

[Event "FAI-ch Open 2021"]
[Site "Klaksvik"]
[Date "2021.04.02"]
[Round "7.5"]
[White "Tummasarson, Flovin M."]
[Black "Petersen, Elias"]
[Result "1-0"]
[ECO "C10"]
[WhiteElo "1743"]
[BlackElo "1403"]
[Annotator "NA"]
[PlyCount "87"]
[EventDate "2021.03.27"]
[EventType "swiss"]
[EventCountry "FAI"]
[SourceTitle "playchess.com"]
[Source "ChessBase"]
[SourceQuality "1"]
[TimeControl "40/5400+30:900+30"]

1. e4 {[%emt 0:00:00]} e6 {[%emt 0:00:00]} 2. d4 {[%emt 0:00:00]} d5 {[%emt 0:00:00]} 3. Nd2 {[%emt 0:00:00]} dxe4 {[%emt 0:00:31]} 4. Nxe4 {[%emt 0:02:11]} Nd7 {[%emt 0:00:19]} 5. Bd3 {[%emt 0:00:28]} Ngf6 {[%emt 0:00:15]} 6. Nf3 {[%emt 0:01:01]} Be7 {[%emt 0:00:31]} 7. Nxf6+ {[%emt 0:02:58]} Nxf6 {[%emt 0:00:13]} 8. Ne5 {[%emt 0:02:16]} O-O {[%emt 0:01:37]} 9. c3 {[%emt 0:06:02]} c5 {[%emt 0:08:42]} 10. Be3 {[%emt 0:07:42]} cxd4 {[%emt 0:01:57]} 11. Bxd4 {[%emt 0:03:20]} Qc7 {[%emt 0:03:20]} 12. Ng4 {[%emt 0:05:19]} Qf4 {[%emt 0:12:40]} 13. Nxf6+ {[%emt 0:02:28]} Bxf6 {[%emt 0:01:17]} 14. g3 {[%emt 0:00:33]} Qh6 {[%emt 0:02:10]} 15. Be3 {[%emt 0:02:38]} Bg5 {[%emt 0:02:08]} 16. f4 {[%emt 0:00:51]} Be7 {[%emt 0:01:36]} 17. h4 {[%emt 0:04:28]} f5 {[%emt 0:02:06]} 18. Qf3 {[%emt 0:02:36]} Qg6 {[%emt 0:05:09]} 19. Bb5 {[%emt 0:04:41]} Qg4 {[%emt 0:02:01]} 20. Qg2 {[%emt 0:03:39]} Rd8 {[%emt 0:02:26]} 21. h5 {[%emt 0:00:52]} Bd7 {[%emt 0:02:25]} 22. Be2 {[%emt 0:01:10]} Bc6 {[%emt 0:00:24]} 23. Qf2 {[%emt 0:00:50]} Bxh1 {[%emt 0:00:34]} 24. Bxg4 {[%emt 0:00:06]} fxg4 {[%emt 0:00:09]} 25. Bd4 {[%emt 0:07:44]} Bf3 {[%emt 0:00:28]} 26. Qe3 {[%emt 0:01:11]} Kf7 {[%emt 0:01:20]} 27. h6 {[%emt 0:01:24]} Bf6 {[%emt 0:01:30]} 28. hxg7 {[%emt 0:01:00]} Kxg7 {[%emt 0:00:34]} 29. Kf2 {[%emt 0:04:24]} Kf7 {[%emt 0:03:47]} 30. Re1 {[%emt 0:04:24]} Re8 {[%emt 0:02:18]} 31. Bxf6 {[%emt 0:04:35]} Kxf6 {[%emt 0:00:30]} 32. Qe5+ {[%emt 0:00:09]} Kf7 {[%emt 0:00:48]} 33. Qh5+ {[%emt 0:01:14]} Kg7 {[%emt 0:00:33]} 34. f5 {[%emt 0:04:46]} e5 {[%emt 0:01:23]} 35. Qg5+ {[%emt 0:00:24]} Kf7 {[%emt 0:00:22]} 36. f6 {[%emt 0:00:49]} Rad8 {[%emt 0:02:19]} 37. Qg7+ {[%emt 0:01:30]} Ke6 {[%emt 0:00:06]} 38. f7 {[%emt 0:01:23]} Rf8 {[%emt 0:00:37]} 39. Rxe5+ {[%emt 0:04:12]} Kd7 {[%emt 0:00:37]} 40. Rc5 {[%emt 0:00:00]} Ke7 {[%emt 0:00:00]} 41. Qe5+ {[%emt 0:03:49]} Kxf7 {[%emt 0:02:56]} 42. Rc7+ {[%emt 0:00:09]} Kg6 {[%emt 0:00:20]} 43. Rg7+ {[%emt 0:00:07]} Kh6 {[%emt 0:00:12]} 44. Qg5# {[%emt 0:00:07]} 1-0

[Event "FAI-ch Open 2021"]
[Site "Klaksvik"]
[Date "2021.04.02"]
[Round "7.6"]
[White "Hojgaard, Brandur"]
[Black "Olsen, Kaj"]
[Result "1/2-1/2"]
[ECO "A48"]
[WhiteElo "1720"]
[BlackElo "1677"]
[Annotator "NA"]
[PlyCount "74"]
[EventDate "2021.03.27"]
[EventType "swiss"]
[EventCountry "FAI"]
[SourceTitle "playchess.com"]
[Source "ChessBase"]
[SourceQuality "1"]
[TimeControl "40/5400+30:900+30"]

1. Nf3 {[%emt 0:00:00]} Nf6 {[%emt 0:00:00]} 2. d4 {[%emt 0:00:00]} g6 {[%emt 0:00:00]} 3. Bf4 {[%emt 0:00:08]} Bg7 {[%emt 0:00:50]} 4. e3 {[%emt 0:00:21]} d5 {[%emt 0:02:22]} 5. h3 {[%emt 0:00:19]} Bf5 {[%emt 0:01:01]} 6. Bd3 {[%emt 0:06:02]} Qd7 {[%emt 0:00:34]} 7. Ne5 {[%emt 0:01:15]} Qc8 {[%emt 0:02:00]} 8. Nc3 {[%emt 0:03:30]} O-O {[%emt 0:05:12]} 9. Nb5 {[%emt 0:04:28]} Na6 {[%emt 0:03:26]} 10. a3 {[%emt 0:02:25]} c6 {[%emt 0:00:14]} 11. Nc3 {[%emt 0:00:26]} Nc7 {[%emt 0:00:16]} 12. Ne2 {[%emt 0:00:28]} Bxd3 {[%emt 0:06:10]} 13. cxd3 {[%emt 0:01:43]} Nd7 {[%emt 0:00:35]} 14. O-O {[%emt 0:01:01]} Nxe5 {[%emt 0:07:28]} 15. dxe5 {[%emt 0:01:10]} f6 {[%emt 0:01:43]} 16. exf6 {[%emt 0:02:38]} Bxf6 {[%emt 0:01:16]} 17. d4 {[%emt 0:00:48]} Re8 {[%emt 0:02:40]} 18. Rc1 {[%emt 0:01:19]} e5 {[%emt 0:00:42]} 19. dxe5 {[%emt 0:01:06]} Bxe5 {[%emt 0:00:16]} 20. Bxe5 {[%emt 0:01:18]} Rxe5 {[%emt 0:00:08]} 21. Nf4 {[%emt 0:02:45]} Ne6 {[%emt 0:04:55]} 22. Nd3 {[%emt 0:07:29]} Rf5 {[%emt 0:13:18]} 23. Qe2 {[%emt 0:03:00]} Ng5 {[%emt 0:01:46]} 24. f3 {[%emt 0:02:43]} Qe6 {[%emt 0:04:37]} 25. Nc5 {[%emt 0:09:16]} Qe7 {[%emt 0:00:08]} 26. e4 {[%emt 0:01:00]} Re8 {[%emt 0:01:04]} 27. h4 {[%emt 0:03:58]} dxe4 {[%emt 0:05:15]} 28. hxg5 {[%emt 0:02:34]} Rxc5 {[%emt 0:00:08]} 29. f4 {[%emt 0:02:01]} Rxc1 {[%emt 0:03:57]} 30. Rxc1 {[%emt 0:00:11]} Qd6 {[%emt 0:01:03]} 31. Qe3 {[%emt 0:02:48]} Qd3 {[%emt 0:08:22]} 32. Kf2 {[%emt 0:00:58]} Rd8 {[%emt 0:00:59]} 33. Re1 {[%emt 0:06:56]} Qd4 {[%emt 0:04:48]} 34. Re2 {[%emt 0:01:20]} Kf7 {[%emt 0:02:55]} 35. Qxd4 {[%emt 0:02:30]} Rxd4 {[%emt 0:00:05]} 36. Ke3 {[%emt 0:00:12]} c5 {[%emt 0:00:12]} 37. Rc2 {[%emt 0:03:15]} b6 {[%emt 0:05:57]} 1/2-1/2

[Event "FAI-ch Open 2021"]
[Site "Klaksvik"]
[Date "2021.04.02"]
[Round "7.7"]
[White "Tidemann-Andersen, Leif"]
[Black "Danielsen, Andrias"]
[Result "0-1"]
[ECO "A02"]
[WhiteElo "1661"]
[BlackElo "1911"]
[Annotator "ChessBase"]
[PlyCount "72"]
[EventDate "2021.03.27"]
[EventType "swiss"]
[EventCountry "FAI"]
[SourceTitle "playchess.com"]
[Source "ChessBase"]
[SourceQuality "1"]
[TimeControl "40/5400+30:900+30"]

1. f4 {[%emt 0:00:00]} d6 {[%emt 0:01:44]} 2. e3 {[%emt 0:00:00]} g6 {[%emt 0:00:11]} 3. d4 {[%emt 0:00:24]} Bg7 {[%emt 0:00:14]} 4. Nf3 {[%emt 0:01:30]} Nf6 {[%emt 0:02:10]} 5. c3 {[%emt 0:00:24]} O-O {[%emt 0:00:10]} 6. Be2 {[%emt 0:00:06]} Nbd7 {[%emt 0:01:59]} 7. O-O {[%emt 0:00:32]} c6 {[%emt 0:06:06]} 8. a4 {[%emt 0:01:57]} Qc7 {[%emt 0:01:20]} 9. Bd2 {[%emt 0:03:56]} e5 {[%emt 0:00:24]} 10. fxe5 {[%emt 0:02:19]} dxe5 {[%emt 0:00:12]} 11. Ng5 {[%emt 0:01:14]} h6 {[%emt 0:04:44]} 12. Nf3 {[%emt 0:04:31]} Re8 {[%emt 0:05:05]} 13. Bc4 {[%emt 0:01:46]} e4 {[%emt 0:08:46]} 14. Nh4 {[%emt 0:00:50]} Nf8 {[%emt 0:00:17]} 15. Na3 {[%emt 0:08:13]} Be6 {[%emt 0:02:19]} 16. Qb3 {[%emt 0:00:27]} Kh7 {[%emt 0:10:24]} 17. Bxe6 {[%emt 0:08:35]} Nxe6 {[%emt 0:03:57]} 18. g3 {[%emt 0:04:16]} Ng5 {[%emt 0:03:57]} 19. Kg2 {[%emt 0:05:06]} Qd7 {[%emt 0:01:43]} 20. Nf5 {[%emt 0:05:28]} gxf5 {[%emt 0:00:18]} 21. Rf4 {[%emt 0:07:27]} Nf3 {[%emt 0:01:20]} 22. Nc4 {[%emt 0:03:38]} Nd5 {[%emt 0:00:25]} 23. Kf2 {[%emt 0:05:13]} Nxf4 {[%emt 0:00:13]} 24. gxf4 {[%emt 0:00:21]} b5 {[%emt 0:00:32]} 25. Ne5 {[%emt 0:01:34]} Bxe5 {[%emt 0:01:02]} 26. fxe5 {[%emt 0:00:31]} Nxd2 {[%emt 0:00:27]} 27. Qd1 {[%emt 0:00:42]} Nf3 {[%emt 0:00:06]} 28. axb5 {[%emt 0:01:13]} cxb5 {[%emt 0:00:13]} 29. h4 {[%emt 0:00:36]} Rg8 {[%emt 0:00:27]} 30. Ra6 {[%emt 0:00:08]} Rg7 {[%emt 0:02:33]} 31. Rf6 {[%emt 0:00:14]} Rag8 {[%emt 0:00:12]} 32. Qxf3 {[%emt 0:04:54]} exf3 {[%emt 0:00:17]} 33. e4 {[%emt 0:00:44]} fxe4 {[%emt 0:00:03]} 34. h5 {[%emt 0:00:14]} Rg2+ {[%emt 0:00:21]} 35. Ke3 {[%emt 0:00:28]} Re2+ {[%emt 0:00:03]} 36. Kf4 {[%emt 0:01:02]} Rg4# {[%emt 0:00:04]} 0-1

[Event "FAI-ch Open 2021"]
[Site "Klaksvik"]
[Date "2021.04.02"]
[Round "7.8"]
[White "Rose, Kenneth T"]
[Black "Bertholdsen, Bjarki"]
[Result "1/2-1/2"]
[ECO "B77"]
[WhiteElo "1996"]
[BlackElo "1353"]
[Annotator "ChessBase"]
[PlyCount "50"]
[EventDate "2021.03.27"]
[EventType "swiss"]
[EventCountry "FAI"]
[SourceTitle "playchess.com"]
[Source "ChessBase"]
[SourceQuality "1"]
[TimeControl "40/5400+30:900+30"]

1. e4 {[%emt 0:00:00]} c5 {[%emt 0:00:00]} 2. Nf3 {[%emt 0:00:00]} d6 {[%emt 0:00:28]} 3. d4 {[%emt 0:00:54]} cxd4 {[%emt 0:00:38]} 4. Nxd4 {[%emt 0:00:52]} Nf6 {[%emt 0:01:23]} 5. Nc3 {[%emt 0:03:05]} g6 {[%emt 0:01:22]} 6. f3 {[%emt 0:02:28]} Bg7 {[%emt 0:01:00]} 7. Be3 {[%emt 0:02:05]} O-O {[%emt 0:01:15]} 8. Qd2 {[%emt 0:02:02]} Nc6 {[%emt 0:01:43]} 9. Bc4 {[%emt 0:03:05]} Bd7 {[%emt 0:01:42]} 10. O-O {[%emt 0:00:59]} Rc8 {[%emt 0:03:41]} 11. Bb3 {[%emt 0:06:35]} Ne5 {[%emt 0:07:56]} 12. Rfd1 {[%emt 0:07:49]} Nc4 {[%emt 0:04:28]} 13. Bxc4 {[%emt 0:03:45]} Rxc4 {[%emt 0:01:20]} 14. Rab1 {[%emt 0:02:21]} Qc8 {[%emt 0:03:46]} 15. Nb3 {[%emt 0:06:21]} a6 {[%emt 0:08:35]} 16. Na5 {[%emt 0:04:04]} Nxe4 {[%emt 0:07:18]} 17. Nxe4 {[%emt 0:05:05]} Rxc2 {[%emt 0:01:29]} 18. Rdc1 {[%emt 0:00:45]} Rxd2 {[%emt 0:03:19]} 19. Rxc8 {[%emt 0:00:28]} Rxg2+ {[%emt 0:00:08]} 20. Kxg2 {[%emt 0:00:34]} Bxc8 {[%emt 0:00:46]} 21. b3 {[%emt 0:01:20]} d5 {[%emt 0:06:29]} 22. Nf2 {[%emt 0:04:03]} Bc3 {[%emt 0:04:04]} 23. b4 {[%emt 0:03:15]} Bf5 {[%emt 0:01:57]} 24. Rd1 {[%emt 0:07:49]} Bxb4 {[%emt 0:02:26]} 25. Nxb7 {[%emt 0:01:26]} Rb8 {[%emt 0:07:43]} 1/2-1/2